{"text_format":"3","workbook":"xlsx","n_sheets":3,"sheets":["Kundeemnedata","Salgsprognose ","Månedlig vægtet prognose"],"not_rendered":{"charts":1,"defined_names":10},"read":"whole","date_system":"1900"}

{"sheet":"Kundeemnedata","index":0,"n_rows":9,"n_cols":10,"rows_kept":9}
[null,"Firmanavn"]
[null,"Måler til detaljerede kundeemner"]
[null,{"$f":"TODAY()","v":"2022-04-06"}]
[{"$nulls":8},{"$f":"Firmanavn","v":"Firmanavn"},"FORTROLIGT"]
[null,"Kundeemnets navn","Kontakt for kundeemne","Kundeemne \nKilde","Kundeemne \nOmråde","Kundeemne \nType","Potentiel mulighed","Udsigt \nfor salg","Prognose for \nLuk","Vægtet \nPrognose"]
[null,"A. Datum Corporation",{"$nulls":3},"Strategisk",{"v":300000,"d":"kr. 300,000.00"},{"v":0.9,"d":"90%"},"Januar",{"$f":"IFERROR(IF(Kundeemnedata[[#This Row],[Udsigt \nfor salg]]<>\"\",Kundeemnedata[[#This Row],[Udsigt \nfor salg]]*Kundeemnedata[[#This Row],[Potentiel mulighed]],\"\"),\"\")","v":{"v":270000,"d":"kr. 270,000.00"}}]
[null,"Adventure Works",{"$nulls":3},"Strategisk",{"v":200000,"d":"kr. 200,000.00"},{"v":0.1,"d":"10%"},"Februar",{"$f":"IFERROR(IF(Kundeemnedata[[#This Row],[Udsigt \nfor salg]]<>\"\",Kundeemnedata[[#This Row],[Udsigt \nfor salg]]*Kundeemnedata[[#This Row],[Potentiel mulighed]],\"\"),\"\")","v":{"v":20000,"d":"kr. 20,000.00"}}]
[null,"Alpine Ski House",{"$nulls":3},"Taktisk",{"v":100000,"d":"kr. 100,000.00"},{"v":0.2,"d":"20%"},"Marts",{"$f":"IFERROR(IF(Kundeemnedata[[#This Row],[Udsigt \nfor salg]]<>\"\",Kundeemnedata[[#This Row],[Udsigt \nfor salg]]*Kundeemnedata[[#This Row],[Potentiel mulighed]],\"\"),\"\")","v":{"v":20000,"d":"kr. 20,000.00"}}]
[null,"Total",{"$nulls":4},{"$f":"SUBTOTAL(109,Kundeemnedata[Potentiel mulighed])","v":{"v":600000,"d":"kr. 600,000.00"}},null,null,{"$f":"SUBTOTAL(109,Kundeemnedata[Vægtet \nPrognose])","v":{"v":310000,"d":"kr. 310,000.00"}}]

{"sheet":"Salgsprognose ","index":1,"n_rows":21,"n_cols":14,"rows_kept":21,"merged":[[3,12,3,13]]}
[null,{"$f":"Firmanavn","v":"Firmanavn"}]
[null,"Salgsprognose"]
[null,{"$f":"MålerDato","v":"2022-04-06"}]
[{"$nulls":11},{"$f":"Firmanavn","v":"Firmanavn"},"FORTROLIGT"]
[null,"Kundeemnets navn","Januar \nPrognose","Februar \nPrognose","Marts \nPrognose","April \nPrognose","Maj \nPrognose","Juni \nPrognose","Juli Prognose","August \nPrognose","September \nPrognose","Oktober \nPrognose","November \nPrognose","December \nPrognose"]
[null,{"$f":"IFERROR(IF(AND(Kundeemnedata[[#This Row],[Kundeemnets navn]] <> \"\", ROW(Salgsprognose[Kundeemnets navn])<>SenestePostering),Kundeemnedata[Kundeemnets navn], \"\"),\"\")","v":"A. Datum Corporation"},{"$f":"IFERROR(IF(Kundeemnedata[[#This Row],[Prognose for \nLuk]] <>\"\",IF(Kundeemnedata[[#This Row],[Prognose for \nLuk]]= \"Januar\",Kundeemnedata[Vægtet \nPrognose],0),\"\"),\"\")","v":{"v":270000,"d":"kr. 270,000"}},{"$f":"IFERROR(IF(Kundeemnedata[[#This Row],[Prognose for \nLuk]] <>\"\",IF(Kundeemnedata[[#This Row],[Prognose for \nLuk]] = \"Februar\",Kundeemnedata[Vægtet \nPrognose],0),\"\"),\"\")","v":{"v":0,"d":"kr. 0"}},{"$f":"IFERROR(IF(Kundeemnedata[[#This Row],[Prognose for \nLuk]] <>\"\",IF(Kundeemnedata[[#This Row],[Prognose for \nLuk]] = \"Marts\",Kundeemnedata[Vægtet \nPrognose],0),\"\"),\"\")","v":{"v":0,"d":"kr. 0"}},{"$f":"IFERROR(IF(Kundeemnedata[[#This Row],[Prognose for \nLuk]] <>\"\",IF(Kundeemnedata[[#This Row],[Prognose for \nLuk]] = \"April\",Kundeemnedata[Vægtet \nPrognose],0),\"\"),\"\")","v":{"v":0,"d":"kr. 0"}},{"$f":"IFERROR(IF(Kundeemnedata[[#This Row],[Prognose for \nLuk]] <>\"\",IF(Kundeemnedata[[#This Row],[Prognose for \nLuk]] = \"Maj\",Kundeemnedata[Vægtet \nPrognose],0),\"\"),\"\")","v":{"v":0,"d":"kr. 0"}},{"$f":"IFERROR(IF(Kundeemnedata[[#This Row],[Prognose for \nLuk]] <>\"\",IF(Kundeemnedata[[#This Row],[Prognose for \nLuk]] = \"Juni\",Kundeemnedata[Vægtet \nPrognose],0),\"\"),\"\")","v":{"v":0,"d":"kr. 0"}},{"$f":"IFERROR(IF(Kundeemnedata[[#This Row],[Prognose for \nLuk]] <>\"\",IF(Kundeemnedata[[#This Row],[Prognose for \nLuk]] = \"July\",Kundeemnedata[Vægtet \nPrognose],0),\"\"),\"\")","v":{"v":0,"d":"kr. 0"}},{"$f":"IFERROR(IF(Kundeemnedata[[#This Row],[Prognose for \nLuk]] <>\"\",IF(Kundeemnedata[[#This Row],[Prognose for \nLuk]] = \"August\",Kundeemnedata[Vægtet \nPrognose],0),\"\"),\"\")","v":{"v":0,"d":"kr. 0"}},{"$f":"IFERROR(IF(Kundeemnedata[[#This Row],[Prognose for \nLuk]] <>\"\",IF(Kundeemnedata[[#This Row],[Prognose for \nLuk]] = \"September\",Kundeemnedata[Vægtet \nPrognose],0),\"\"),\"\")","v":{"v":0,"d":"kr. 0"}},{"$f":"IFERROR(IF(Kundeemnedata[[#This Row],[Prognose for \nLuk]] <>\"\",IF(Kundeemnedata[[#This Row],[Prognose for \nLuk]] = \"Oktober\",Kundeemnedata[Vægtet \nPrognose],0),\"\"),\"\")","v":{"v":0,"d":"kr. 0"}},{"$f":"IFERROR(IF(Kundeemnedata[[#This Row],[Prognose for \nLuk]] <>\"\",IF(Kundeemnedata[[#This Row],[Prognose for \nLuk]] = \"November\",Kundeemnedata[Vægtet \nPrognose],0),\"\"),\"\")","v":{"v":0,"d":"kr. 0"}},{"$f":"IFERROR(IF(Kundeemnedata[[#This Row],[Prognose for \nLuk]] <>\"\",IF(Kundeemnedata[[#This Row],[Prognose for \nLuk]] = \"December\",Kundeemnedata[Vægtet \nPrognose],0),\"\"),\"\")","v":{"v":0,"d":"kr. 0"}}]
[null,{"$f":"IFERROR(IF(AND(Kundeemnedata[[#This Row],[Kundeemnets navn]] <> \"\", ROW(Salgsprognose[Kundeemnets navn])<>SenestePostering),Kundeemnedata[Kundeemnets navn], \"\"),\"\")","v":"Adventure Works"},{"$f":"IFERROR(IF(Kundeemnedata[[#This Row],[Prognose for \nLuk]] <>\"\",IF(Kundeemnedata[[#This Row],[Prognose for \nLuk]]= \"Januar\",Kundeemnedata[Vægtet \nPrognose],0),\"\"),\"\")","v":{"v":0,"d":"kr. 0"}},{"$f":"IFERROR(IF(Kundeemnedata[[#This Row],[Prognose for \nLuk]] <>\"\",IF(Kundeemnedata[[#This Row],[Prognose for \nLuk]] = \"Februar\",Kundeemnedata[Vægtet \nPrognose],0),\"\"),\"\")","v":{"v":20000,"d":"kr. 20,000"}},{"$f":"IFERROR(IF(Kundeemnedata[[#This Row],[Prognose for \nLuk]] <>\"\",IF(Kundeemnedata[[#This Row],[Prognose for \nLuk]] = \"Marts\",Kundeemnedata[Vægtet \nPrognose],0),\"\"),\"\")","v":{"v":0,"d":"kr. 0"}},{"$f":"IFERROR(IF(Kundeemnedata[[#This Row],[Prognose for \nLuk]] <>\"\",IF(Kundeemnedata[[#This Row],[Prognose for \nLuk]] = \"April\",Kundeemnedata[Vægtet \nPrognose],0),\"\"),\"\")","v":{"v":0,"d":"kr. 0"}},{"$f":"IFERROR(IF(Kundeemnedata[[#This Row],[Prognose for \nLuk]] <>\"\",IF(Kundeemnedata[[#This Row],[Prognose for \nLuk]] = \"Maj\",Kundeemnedata[Vægtet \nPrognose],0),\"\"),\"\")","v":{"v":0,"d":"kr. 0"}},{"$f":"IFERROR(IF(Kundeemnedata[[#This Row],[Prognose for \nLuk]] <>\"\",IF(Kundeemnedata[[#This Row],[Prognose for \nLuk]] = \"Juni\",Kundeemnedata[Vægtet \nPrognose],0),\"\"),\"\")","v":{"v":0,"d":"kr. 0"}},{"$f":"IFERROR(IF(Kundeemnedata[[#This Row],[Prognose for \nLuk]] <>\"\",IF(Kundeemnedata[[#This Row],[Prognose for \nLuk]] = \"July\",Kundeemnedata[Vægtet \nPrognose],0),\"\"),\"\")","v":{"v":0,"d":"kr. 0"}},{"$f":"IFERROR(IF(Kundeemnedata[[#This Row],[Prognose for \nLuk]] <>\"\",IF(Kundeemnedata[[#This Row],[Prognose for \nLuk]] = \"August\",Kundeemnedata[Vægtet \nPrognose],0),\"\"),\"\")","v":{"v":0,"d":"kr. 0"}},{"$f":"IFERROR(IF(Kundeemnedata[[#This Row],[Prognose for \nLuk]] <>\"\",IF(Kundeemnedata[[#This Row],[Prognose for \nLuk]] = \"September\",Kundeemnedata[Vægtet \nPrognose],0),\"\"),\"\")","v":{"v":0,"d":"kr. 0"}},{"$f":"IFERROR(IF(Kundeemnedata[[#This Row],[Prognose for \nLuk]] <>\"\",IF(Kundeemnedata[[#This Row],[Prognose for \nLuk]] = \"Oktober\",Kundeemnedata[Vægtet \nPrognose],0),\"\"),\"\")","v":{"v":0,"d":"kr. 0"}},{"$f":"IFERROR(IF(Kundeemnedata[[#This Row],[Prognose for \nLuk]] <>\"\",IF(Kundeemnedata[[#This Row],[Prognose for \nLuk]] = \"November\",Kundeemnedata[Vægtet \nPrognose],0),\"\"),\"\")","v":{"v":0,"d":"kr. 0"}},{"$f":"IFERROR(IF(Kundeemnedata[[#This Row],[Prognose for \nLuk]] <>\"\",IF(Kundeemnedata[[#This Row],[Prognose for \nLuk]] = \"December\",Kundeemnedata[Vægtet \nPrognose],0),\"\"),\"\")","v":{"v":0,"d":"kr. 0"}}]
[null,{"$f":"IFERROR(IF(AND(Kundeemnedata[[#This Row],[Kundeemnets navn]] <> \"\", ROW(Salgsprognose[Kundeemnets navn])<>SenestePostering),Kundeemnedata[Kundeemnets navn], \"\"),\"\")","v":"Alpine Ski House"},{"$f":"IFERROR(IF(Kundeemnedata[[#This Row],[Prognose for \nLuk]] <>\"\",IF(Kundeemnedata[[#This Row],[Prognose for \nLuk]]= \"Januar\",Kundeemnedata[Vægtet \nPrognose],0),\"\"),\"\")","v":{"v":0,"d":"kr. 0"}},{"$f":"IFERROR(IF(Kundeemnedata[[#This Row],[Prognose for \nLuk]] <>\"\",IF(Kundeemnedata[[#This Row],[Prognose for \nLuk]] = \"Februar\",Kundeemnedata[Vægtet \nPrognose],0),\"\"),\"\")","v":{"v":0,"d":"kr. 0"}},{"$f":"IFERROR(IF(Kundeemnedata[[#This Row],[Prognose for \nLuk]] <>\"\",IF(Kundeemnedata[[#This Row],[Prognose for \nLuk]] = \"Marts\",Kundeemnedata[Vægtet \nPrognose],0),\"\"),\"\")","v":{"v":20000,"d":"kr. 20,000"}},{"$f":"IFERROR(IF(Kundeemnedata[[#This Row],[Prognose for \nLuk]] <>\"\",IF(Kundeemnedata[[#This Row],[Prognose for \nLuk]] = \"April\",Kundeemnedata[Vægtet \nPrognose],0),\"\"),\"\")","v":{"v":0,"d":"kr. 0"}},{"$f":"IFERROR(IF(Kundeemnedata[[#This Row],[Prognose for \nLuk]] <>\"\",IF(Kundeemnedata[[#This Row],[Prognose for \nLuk]] = \"Maj\",Kundeemnedata[Vægtet \nPrognose],0),\"\"),\"\")","v":{"v":0,"d":"kr. 0"}},{"$f":"IFERROR(IF(Kundeemnedata[[#This Row],[Prognose for \nLuk]] <>\"\",IF(Kundeemnedata[[#This Row],[Prognose for \nLuk]] = \"Juni\",Kundeemnedata[Vægtet \nPrognose],0),\"\"),\"\")","v":{"v":0,"d":"kr. 0"}},{"$f":"IFERROR(IF(Kundeemnedata[[#This Row],[Prognose for \nLuk]] <>\"\",IF(Kundeemnedata[[#This Row],[Prognose for \nLuk]] = \"July\",Kundeemnedata[Vægtet \nPrognose],0),\"\"),\"\")","v":{"v":0,"d":"kr. 0"}},{"$f":"IFERROR(IF(Kundeemnedata[[#This Row],[Prognose for \nLuk]] <>\"\",IF(Kundeemnedata[[#This Row],[Prognose for \nLuk]] = \"August\",Kundeemnedata[Vægtet \nPrognose],0),\"\"),\"\")","v":{"v":0,"d":"kr. 0"}},{"$f":"IFERROR(IF(Kundeemnedata[[#This Row],[Prognose for \nLuk]] <>\"\",IF(Kundeemnedata[[#This Row],[Prognose for \nLuk]] = \"September\",Kundeemnedata[Vægtet \nPrognose],0),\"\"),\"\")","v":{"v":0,"d":"kr. 0"}},{"$f":"IFERROR(IF(Kundeemnedata[[#This Row],[Prognose for \nLuk]] <>\"\",IF(Kundeemnedata[[#This Row],[Prognose for \nLuk]] = \"Oktober\",Kundeemnedata[Vægtet \nPrognose],0),\"\"),\"\")","v":{"v":0,"d":"kr. 0"}},{"$f":"IFERROR(IF(Kundeemnedata[[#This Row],[Prognose for \nLuk]] <>\"\",IF(Kundeemnedata[[#This Row],[Prognose for \nLuk]] = \"November\",Kundeemnedata[Vægtet \nPrognose],0),\"\"),\"\")","v":{"v":0,"d":"kr. 0"}},{"$f":"IFERROR(IF(Kundeemnedata[[#This Row],[Prognose for \nLuk]] <>\"\",IF(Kundeemnedata[[#This Row],[Prognose for \nLuk]] = \"December\",Kundeemnedata[Vægtet \nPrognose],0),\"\"),\"\")","v":{"v":0,"d":"kr. 0"}}]
[null,{"$f":"IFERROR(IF(AND(Kundeemnedata[[#This Row],[Kundeemnets navn]] <> \"\", ROW(Salgsprognose[Kundeemnets navn])<>SenestePostering),Kundeemnedata[Kundeemnets navn], \"\"),\"\")","v":""},{"$f":"IFERROR(IF(Kundeemnedata[[#This Row],[Prognose for \nLuk]] <>\"\",IF(Kundeemnedata[[#This Row],[Prognose for \nLuk]]= \"Januar\",Kundeemnedata[Vægtet \nPrognose],0),\"\"),\"\")","v":""},{"$f":"IFERROR(IF(Kundeemnedata[[#This Row],[Prognose for \nLuk]] <>\"\",IF(Kundeemnedata[[#This Row],[Prognose for \nLuk]] = \"Februar\",Kundeemnedata[Vægtet \nPrognose],0),\"\"),\"\")","v":""},{"$f":"IFERROR(IF(Kundeemnedata[[#This Row],[Prognose for \nLuk]] <>\"\",IF(Kundeemnedata[[#This Row],[Prognose for \nLuk]] = \"Marts\",Kundeemnedata[Vægtet \nPrognose],0),\"\"),\"\")","v":""},{"$f":"IFERROR(IF(Kundeemnedata[[#This Row],[Prognose for \nLuk]] <>\"\",IF(Kundeemnedata[[#This Row],[Prognose for \nLuk]] = \"April\",Kundeemnedata[Vægtet \nPrognose],0),\"\"),\"\")","v":""},{"$f":"IFERROR(IF(Kundeemnedata[[#This Row],[Prognose for \nLuk]] <>\"\",IF(Kundeemnedata[[#This Row],[Prognose for \nLuk]] = \"Maj\",Kundeemnedata[Vægtet \nPrognose],0),\"\"),\"\")","v":""},{"$f":"IFERROR(IF(Kundeemnedata[[#This Row],[Prognose for \nLuk]] <>\"\",IF(Kundeemnedata[[#This Row],[Prognose for \nLuk]] = \"Juni\",Kundeemnedata[Vægtet \nPrognose],0),\"\"),\"\")","v":""},{"$f":"IFERROR(IF(Kundeemnedata[[#This Row],[Prognose for \nLuk]] <>\"\",IF(Kundeemnedata[[#This Row],[Prognose for \nLuk]] = \"July\",Kundeemnedata[Vægtet \nPrognose],0),\"\"),\"\")","v":""},{"$f":"IFERROR(IF(Kundeemnedata[[#This Row],[Prognose for \nLuk]] <>\"\",IF(Kundeemnedata[[#This Row],[Prognose for \nLuk]] = \"August\",Kundeemnedata[Vægtet \nPrognose],0),\"\"),\"\")","v":""},{"$f":"IFERROR(IF(Kundeemnedata[[#This Row],[Prognose for \nLuk]] <>\"\",IF(Kundeemnedata[[#This Row],[Prognose for \nLuk]] = \"September\",Kundeemnedata[Vægtet \nPrognose],0),\"\"),\"\")","v":""},{"$f":"IFERROR(IF(Kundeemnedata[[#This Row],[Prognose for \nLuk]] <>\"\",IF(Kundeemnedata[[#This Row],[Prognose for \nLuk]] = \"Oktober\",Kundeemnedata[Vægtet \nPrognose],0),\"\"),\"\")","v":""},{"$f":"IFERROR(IF(Kundeemnedata[[#This Row],[Prognose for \nLuk]] <>\"\",IF(Kundeemnedata[[#This Row],[Prognose for \nLuk]] = \"November\",Kundeemnedata[Vægtet \nPrognose],0),\"\"),\"\")","v":""},{"$f":"IFERROR(IF(Kundeemnedata[[#This Row],[Prognose for \nLuk]] <>\"\",IF(Kundeemnedata[[#This Row],[Prognose for \nLuk]] = \"December\",Kundeemnedata[Vægtet \nPrognose],0),\"\"),\"\")","v":""}]
[null,{"$f":"IFERROR(IF(AND(Kundeemnedata[[#This Row],[Kundeemnets navn]] <> \"\", ROW(Salgsprognose[Kundeemnets navn])<>SenestePostering),Kundeemnedata[Kundeemnets navn], \"\"),\"\")","v":""},{"$f":"IFERROR(IF(Kundeemnedata[[#This Row],[Prognose for \nLuk]] <>\"\",IF(Kundeemnedata[[#This Row],[Prognose for \nLuk]]= \"Januar\",Kundeemnedata[Vægtet \nPrognose],0),\"\"),\"\")","v":""},{"$f":"IFERROR(IF(Kundeemnedata[[#This Row],[Prognose for \nLuk]] <>\"\",IF(Kundeemnedata[[#This Row],[Prognose for \nLuk]] = \"Februar\",Kundeemnedata[Vægtet \nPrognose],0),\"\"),\"\")","v":""},{"$f":"IFERROR(IF(Kundeemnedata[[#This Row],[Prognose for \nLuk]] <>\"\",IF(Kundeemnedata[[#This Row],[Prognose for \nLuk]] = \"Marts\",Kundeemnedata[Vægtet \nPrognose],0),\"\"),\"\")","v":""},{"$f":"IFERROR(IF(Kundeemnedata[[#This Row],[Prognose for \nLuk]] <>\"\",IF(Kundeemnedata[[#This Row],[Prognose for \nLuk]] = \"April\",Kundeemnedata[Vægtet \nPrognose],0),\"\"),\"\")","v":""},{"$f":"IFERROR(IF(Kundeemnedata[[#This Row],[Prognose for \nLuk]] <>\"\",IF(Kundeemnedata[[#This Row],[Prognose for \nLuk]] = \"Maj\",Kundeemnedata[Vægtet \nPrognose],0),\"\"),\"\")","v":""},{"$f":"IFERROR(IF(Kundeemnedata[[#This Row],[Prognose for \nLuk]] <>\"\",IF(Kundeemnedata[[#This Row],[Prognose for \nLuk]] = \"Juni\",Kundeemnedata[Vægtet \nPrognose],0),\"\"),\"\")","v":""},{"$f":"IFERROR(IF(Kundeemnedata[[#This Row],[Prognose for \nLuk]] <>\"\",IF(Kundeemnedata[[#This Row],[Prognose for \nLuk]] = \"July\",Kundeemnedata[Vægtet \nPrognose],0),\"\"),\"\")","v":""},{"$f":"IFERROR(IF(Kundeemnedata[[#This Row],[Prognose for \nLuk]] <>\"\",IF(Kundeemnedata[[#This Row],[Prognose for \nLuk]] = \"August\",Kundeemnedata[Vægtet \nPrognose],0),\"\"),\"\")","v":""},{"$f":"IFERROR(IF(Kundeemnedata[[#This Row],[Prognose for \nLuk]] <>\"\",IF(Kundeemnedata[[#This Row],[Prognose for \nLuk]] = \"September\",Kundeemnedata[Vægtet \nPrognose],0),\"\"),\"\")","v":""},{"$f":"IFERROR(IF(Kundeemnedata[[#This Row],[Prognose for \nLuk]] <>\"\",IF(Kundeemnedata[[#This Row],[Prognose for \nLuk]] = \"Oktober\",Kundeemnedata[Vægtet \nPrognose],0),\"\"),\"\")","v":""},{"$f":"IFERROR(IF(Kundeemnedata[[#This Row],[Prognose for \nLuk]] <>\"\",IF(Kundeemnedata[[#This Row],[Prognose for \nLuk]] = \"November\",Kundeemnedata[Vægtet \nPrognose],0),\"\"),\"\")","v":""},{"$f":"IFERROR(IF(Kundeemnedata[[#This Row],[Prognose for \nLuk]] <>\"\",IF(Kundeemnedata[[#This Row],[Prognose for \nLuk]] = \"December\",Kundeemnedata[Vægtet \nPrognose],0),\"\"),\"\")","v":""}]
[null,{"$f":"IFERROR(IF(AND(Kundeemnedata[[#This Row],[Kundeemnets navn]] <> \"\", ROW(Salgsprognose[Kundeemnets navn])<>SenestePostering),Kundeemnedata[Kundeemnets navn], \"\"),\"\")","v":""},{"$f":"IFERROR(IF(Kundeemnedata[[#This Row],[Prognose for \nLuk]] <>\"\",IF(Kundeemnedata[[#This Row],[Prognose for \nLuk]]= \"Januar\",Kundeemnedata[Vægtet \nPrognose],0),\"\"),\"\")","v":""},{"$f":"IFERROR(IF(Kundeemnedata[[#This Row],[Prognose for \nLuk]] <>\"\",IF(Kundeemnedata[[#This Row],[Prognose for \nLuk]] = \"Februar\",Kundeemnedata[Vægtet \nPrognose],0),\"\"),\"\")","v":""},{"$f":"IFERROR(IF(Kundeemnedata[[#This Row],[Prognose for \nLuk]] <>\"\",IF(Kundeemnedata[[#This Row],[Prognose for \nLuk]] = \"Marts\",Kundeemnedata[Vægtet \nPrognose],0),\"\"),\"\")","v":""},{"$f":"IFERROR(IF(Kundeemnedata[[#This Row],[Prognose for \nLuk]] <>\"\",IF(Kundeemnedata[[#This Row],[Prognose for \nLuk]] = \"April\",Kundeemnedata[Vægtet \nPrognose],0),\"\"),\"\")","v":""},{"$f":"IFERROR(IF(Kundeemnedata[[#This Row],[Prognose for \nLuk]] <>\"\",IF(Kundeemnedata[[#This Row],[Prognose for \nLuk]] = \"Maj\",Kundeemnedata[Vægtet \nPrognose],0),\"\"),\"\")","v":""},{"$f":"IFERROR(IF(Kundeemnedata[[#This Row],[Prognose for \nLuk]] <>\"\",IF(Kundeemnedata[[#This Row],[Prognose for \nLuk]] = \"Juni\",Kundeemnedata[Vægtet \nPrognose],0),\"\"),\"\")","v":""},{"$f":"IFERROR(IF(Kundeemnedata[[#This Row],[Prognose for \nLuk]] <>\"\",IF(Kundeemnedata[[#This Row],[Prognose for \nLuk]] = \"July\",Kundeemnedata[Vægtet \nPrognose],0),\"\"),\"\")","v":""},{"$f":"IFERROR(IF(Kundeemnedata[[#This Row],[Prognose for \nLuk]] <>\"\",IF(Kundeemnedata[[#This Row],[Prognose for \nLuk]] = \"August\",Kundeemnedata[Vægtet \nPrognose],0),\"\"),\"\")","v":""},{"$f":"IFERROR(IF(Kundeemnedata[[#This Row],[Prognose for \nLuk]] <>\"\",IF(Kundeemnedata[[#This Row],[Prognose for \nLuk]] = \"September\",Kundeemnedata[Vægtet \nPrognose],0),\"\"),\"\")","v":""},{"$f":"IFERROR(IF(Kundeemnedata[[#This Row],[Prognose for \nLuk]] <>\"\",IF(Kundeemnedata[[#This Row],[Prognose for \nLuk]] = \"Oktober\",Kundeemnedata[Vægtet \nPrognose],0),\"\"),\"\")","v":""},{"$f":"IFERROR(IF(Kundeemnedata[[#This Row],[Prognose for \nLuk]] <>\"\",IF(Kundeemnedata[[#This Row],[Prognose for \nLuk]] = \"November\",Kundeemnedata[Vægtet \nPrognose],0),\"\"),\"\")","v":""},{"$f":"IFERROR(IF(Kundeemnedata[[#This Row],[Prognose for \nLuk]] <>\"\",IF(Kundeemnedata[[#This Row],[Prognose for \nLuk]] = \"December\",Kundeemnedata[Vægtet \nPrognose],0),\"\"),\"\")","v":""}]
[null,{"$f":"IFERROR(IF(AND(Kundeemnedata[[#This Row],[Kundeemnets navn]] <> \"\", ROW(Salgsprognose[Kundeemnets navn])<>SenestePostering),Kundeemnedata[Kundeemnets navn], \"\"),\"\")","v":""},{"$f":"IFERROR(IF(Kundeemnedata[[#This Row],[Prognose for \nLuk]] <>\"\",IF(Kundeemnedata[[#This Row],[Prognose for \nLuk]]= \"Januar\",Kundeemnedata[Vægtet \nPrognose],0),\"\"),\"\")","v":""},{"$f":"IFERROR(IF(Kundeemnedata[[#This Row],[Prognose for \nLuk]] <>\"\",IF(Kundeemnedata[[#This Row],[Prognose for \nLuk]] = \"Februar\",Kundeemnedata[Vægtet \nPrognose],0),\"\"),\"\")","v":""},{"$f":"IFERROR(IF(Kundeemnedata[[#This Row],[Prognose for \nLuk]] <>\"\",IF(Kundeemnedata[[#This Row],[Prognose for \nLuk]] = \"Marts\",Kundeemnedata[Vægtet \nPrognose],0),\"\"),\"\")","v":""},{"$f":"IFERROR(IF(Kundeemnedata[[#This Row],[Prognose for \nLuk]] <>\"\",IF(Kundeemnedata[[#This Row],[Prognose for \nLuk]] = \"April\",Kundeemnedata[Vægtet \nPrognose],0),\"\"),\"\")","v":""},{"$f":"IFERROR(IF(Kundeemnedata[[#This Row],[Prognose for \nLuk]] <>\"\",IF(Kundeemnedata[[#This Row],[Prognose for \nLuk]] = \"Maj\",Kundeemnedata[Vægtet \nPrognose],0),\"\"),\"\")","v":""},{"$f":"IFERROR(IF(Kundeemnedata[[#This Row],[Prognose for \nLuk]] <>\"\",IF(Kundeemnedata[[#This Row],[Prognose for \nLuk]] = \"Juni\",Kundeemnedata[Vægtet \nPrognose],0),\"\"),\"\")","v":""},{"$f":"IFERROR(IF(Kundeemnedata[[#This Row],[Prognose for \nLuk]] <>\"\",IF(Kundeemnedata[[#This Row],[Prognose for \nLuk]] = \"July\",Kundeemnedata[Vægtet \nPrognose],0),\"\"),\"\")","v":""},{"$f":"IFERROR(IF(Kundeemnedata[[#This Row],[Prognose for \nLuk]] <>\"\",IF(Kundeemnedata[[#This Row],[Prognose for \nLuk]] = \"August\",Kundeemnedata[Vægtet \nPrognose],0),\"\"),\"\")","v":""},{"$f":"IFERROR(IF(Kundeemnedata[[#This Row],[Prognose for \nLuk]] <>\"\",IF(Kundeemnedata[[#This Row],[Prognose for \nLuk]] = \"September\",Kundeemnedata[Vægtet \nPrognose],0),\"\"),\"\")","v":""},{"$f":"IFERROR(IF(Kundeemnedata[[#This Row],[Prognose for \nLuk]] <>\"\",IF(Kundeemnedata[[#This Row],[Prognose for \nLuk]] = \"Oktober\",Kundeemnedata[Vægtet \nPrognose],0),\"\"),\"\")","v":""},{"$f":"IFERROR(IF(Kundeemnedata[[#This Row],[Prognose for \nLuk]] <>\"\",IF(Kundeemnedata[[#This Row],[Prognose for \nLuk]] = \"November\",Kundeemnedata[Vægtet \nPrognose],0),\"\"),\"\")","v":""},{"$f":"IFERROR(IF(Kundeemnedata[[#This Row],[Prognose for \nLuk]] <>\"\",IF(Kundeemnedata[[#This Row],[Prognose for \nLuk]] = \"December\",Kundeemnedata[Vægtet \nPrognose],0),\"\"),\"\")","v":""}]
[null,{"$f":"IFERROR(IF(AND(Kundeemnedata[[#This Row],[Kundeemnets navn]] <> \"\", ROW(Salgsprognose[Kundeemnets navn])<>SenestePostering),Kundeemnedata[Kundeemnets navn], \"\"),\"\")","v":""},{"$f":"IFERROR(IF(Kundeemnedata[[#This Row],[Prognose for \nLuk]] <>\"\",IF(Kundeemnedata[[#This Row],[Prognose for \nLuk]]= \"Januar\",Kundeemnedata[Vægtet \nPrognose],0),\"\"),\"\")","v":""},{"$f":"IFERROR(IF(Kundeemnedata[[#This Row],[Prognose for \nLuk]] <>\"\",IF(Kundeemnedata[[#This Row],[Prognose for \nLuk]] = \"Februar\",Kundeemnedata[Vægtet \nPrognose],0),\"\"),\"\")","v":""},{"$f":"IFERROR(IF(Kundeemnedata[[#This Row],[Prognose for \nLuk]] <>\"\",IF(Kundeemnedata[[#This Row],[Prognose for \nLuk]] = \"Marts\",Kundeemnedata[Vægtet \nPrognose],0),\"\"),\"\")","v":""},{"$f":"IFERROR(IF(Kundeemnedata[[#This Row],[Prognose for \nLuk]] <>\"\",IF(Kundeemnedata[[#This Row],[Prognose for \nLuk]] = \"April\",Kundeemnedata[Vægtet \nPrognose],0),\"\"),\"\")","v":""},{"$f":"IFERROR(IF(Kundeemnedata[[#This Row],[Prognose for \nLuk]] <>\"\",IF(Kundeemnedata[[#This Row],[Prognose for \nLuk]] = \"Maj\",Kundeemnedata[Vægtet \nPrognose],0),\"\"),\"\")","v":""},{"$f":"IFERROR(IF(Kundeemnedata[[#This Row],[Prognose for \nLuk]] <>\"\",IF(Kundeemnedata[[#This Row],[Prognose for \nLuk]] = \"Juni\",Kundeemnedata[Vægtet \nPrognose],0),\"\"),\"\")","v":""},{"$f":"IFERROR(IF(Kundeemnedata[[#This Row],[Prognose for \nLuk]] <>\"\",IF(Kundeemnedata[[#This Row],[Prognose for \nLuk]] = \"July\",Kundeemnedata[Vægtet \nPrognose],0),\"\"),\"\")","v":""},{"$f":"IFERROR(IF(Kundeemnedata[[#This Row],[Prognose for \nLuk]] <>\"\",IF(Kundeemnedata[[#This Row],[Prognose for \nLuk]] = \"August\",Kundeemnedata[Vægtet \nPrognose],0),\"\"),\"\")","v":""},{"$f":"IFERROR(IF(Kundeemnedata[[#This Row],[Prognose for \nLuk]] <>\"\",IF(Kundeemnedata[[#This Row],[Prognose for \nLuk]] = \"September\",Kundeemnedata[Vægtet \nPrognose],0),\"\"),\"\")","v":""},{"$f":"IFERROR(IF(Kundeemnedata[[#This Row],[Prognose for \nLuk]] <>\"\",IF(Kundeemnedata[[#This Row],[Prognose for \nLuk]] = \"Oktober\",Kundeemnedata[Vægtet \nPrognose],0),\"\"),\"\")","v":""},{"$f":"IFERROR(IF(Kundeemnedata[[#This Row],[Prognose for \nLuk]] <>\"\",IF(Kundeemnedata[[#This Row],[Prognose for \nLuk]] = \"November\",Kundeemnedata[Vægtet \nPrognose],0),\"\"),\"\")","v":""},{"$f":"IFERROR(IF(Kundeemnedata[[#This Row],[Prognose for \nLuk]] <>\"\",IF(Kundeemnedata[[#This Row],[Prognose for \nLuk]] = \"December\",Kundeemnedata[Vægtet \nPrognose],0),\"\"),\"\")","v":""}]
[null,{"$f":"IFERROR(IF(AND(Kundeemnedata[[#This Row],[Kundeemnets navn]] <> \"\", ROW(Salgsprognose[Kundeemnets navn])<>SenestePostering),Kundeemnedata[Kundeemnets navn], \"\"),\"\")","v":""},{"$f":"IFERROR(IF(Kundeemnedata[[#This Row],[Prognose for \nLuk]] <>\"\",IF(Kundeemnedata[[#This Row],[Prognose for \nLuk]]= \"Januar\",Kundeemnedata[Vægtet \nPrognose],0),\"\"),\"\")","v":""},{"$f":"IFERROR(IF(Kundeemnedata[[#This Row],[Prognose for \nLuk]] <>\"\",IF(Kundeemnedata[[#This Row],[Prognose for \nLuk]] = \"Februar\",Kundeemnedata[Vægtet \nPrognose],0),\"\"),\"\")","v":""},{"$f":"IFERROR(IF(Kundeemnedata[[#This Row],[Prognose for \nLuk]] <>\"\",IF(Kundeemnedata[[#This Row],[Prognose for \nLuk]] = \"Marts\",Kundeemnedata[Vægtet \nPrognose],0),\"\"),\"\")","v":""},{"$f":"IFERROR(IF(Kundeemnedata[[#This Row],[Prognose for \nLuk]] <>\"\",IF(Kundeemnedata[[#This Row],[Prognose for \nLuk]] = \"April\",Kundeemnedata[Vægtet \nPrognose],0),\"\"),\"\")","v":""},{"$f":"IFERROR(IF(Kundeemnedata[[#This Row],[Prognose for \nLuk]] <>\"\",IF(Kundeemnedata[[#This Row],[Prognose for \nLuk]] = \"Maj\",Kundeemnedata[Vægtet \nPrognose],0),\"\"),\"\")","v":""},{"$f":"IFERROR(IF(Kundeemnedata[[#This Row],[Prognose for \nLuk]] <>\"\",IF(Kundeemnedata[[#This Row],[Prognose for \nLuk]] = \"Juni\",Kundeemnedata[Vægtet \nPrognose],0),\"\"),\"\")","v":""},{"$f":"IFERROR(IF(Kundeemnedata[[#This Row],[Prognose for \nLuk]] <>\"\",IF(Kundeemnedata[[#This Row],[Prognose for \nLuk]] = \"July\",Kundeemnedata[Vægtet \nPrognose],0),\"\"),\"\")","v":""},{"$f":"IFERROR(IF(Kundeemnedata[[#This Row],[Prognose for \nLuk]] <>\"\",IF(Kundeemnedata[[#This Row],[Prognose for \nLuk]] = \"August\",Kundeemnedata[Vægtet \nPrognose],0),\"\"),\"\")","v":""},{"$f":"IFERROR(IF(Kundeemnedata[[#This Row],[Prognose for \nLuk]] <>\"\",IF(Kundeemnedata[[#This Row],[Prognose for \nLuk]] = \"September\",Kundeemnedata[Vægtet \nPrognose],0),\"\"),\"\")","v":""},{"$f":"IFERROR(IF(Kundeemnedata[[#This Row],[Prognose for \nLuk]] <>\"\",IF(Kundeemnedata[[#This Row],[Prognose for \nLuk]] = \"Oktober\",Kundeemnedata[Vægtet \nPrognose],0),\"\"),\"\")","v":""},{"$f":"IFERROR(IF(Kundeemnedata[[#This Row],[Prognose for \nLuk]] <>\"\",IF(Kundeemnedata[[#This Row],[Prognose for \nLuk]] = \"November\",Kundeemnedata[Vægtet \nPrognose],0),\"\"),\"\")","v":""},{"$f":"IFERROR(IF(Kundeemnedata[[#This Row],[Prognose for \nLuk]] <>\"\",IF(Kundeemnedata[[#This Row],[Prognose for \nLuk]] = \"December\",Kundeemnedata[Vægtet \nPrognose],0),\"\"),\"\")","v":""}]
[null,{"$f":"IFERROR(IF(AND(Kundeemnedata[[#This Row],[Kundeemnets navn]] <> \"\", ROW(Salgsprognose[Kundeemnets navn])<>SenestePostering),Kundeemnedata[Kundeemnets navn], \"\"),\"\")","v":""},{"$f":"IFERROR(IF(Kundeemnedata[[#This Row],[Prognose for \nLuk]] <>\"\",IF(Kundeemnedata[[#This Row],[Prognose for \nLuk]]= \"Januar\",Kundeemnedata[Vægtet \nPrognose],0),\"\"),\"\")","v":""},{"$f":"IFERROR(IF(Kundeemnedata[[#This Row],[Prognose for \nLuk]] <>\"\",IF(Kundeemnedata[[#This Row],[Prognose for \nLuk]] = \"Februar\",Kundeemnedata[Vægtet \nPrognose],0),\"\"),\"\")","v":""},{"$f":"IFERROR(IF(Kundeemnedata[[#This Row],[Prognose for \nLuk]] <>\"\",IF(Kundeemnedata[[#This Row],[Prognose for \nLuk]] = \"Marts\",Kundeemnedata[Vægtet \nPrognose],0),\"\"),\"\")","v":""},{"$f":"IFERROR(IF(Kundeemnedata[[#This Row],[Prognose for \nLuk]] <>\"\",IF(Kundeemnedata[[#This Row],[Prognose for \nLuk]] = \"April\",Kundeemnedata[Vægtet \nPrognose],0),\"\"),\"\")","v":""},{"$f":"IFERROR(IF(Kundeemnedata[[#This Row],[Prognose for \nLuk]] <>\"\",IF(Kundeemnedata[[#This Row],[Prognose for \nLuk]] = \"Maj\",Kundeemnedata[Vægtet \nPrognose],0),\"\"),\"\")","v":""},{"$f":"IFERROR(IF(Kundeemnedata[[#This Row],[Prognose for \nLuk]] <>\"\",IF(Kundeemnedata[[#This Row],[Prognose for \nLuk]] = \"Juni\",Kundeemnedata[Vægtet \nPrognose],0),\"\"),\"\")","v":""},{"$f":"IFERROR(IF(Kundeemnedata[[#This Row],[Prognose for \nLuk]] <>\"\",IF(Kundeemnedata[[#This Row],[Prognose for \nLuk]] = \"July\",Kundeemnedata[Vægtet \nPrognose],0),\"\"),\"\")","v":""},{"$f":"IFERROR(IF(Kundeemnedata[[#This Row],[Prognose for \nLuk]] <>\"\",IF(Kundeemnedata[[#This Row],[Prognose for \nLuk]] = \"August\",Kundeemnedata[Vægtet \nPrognose],0),\"\"),\"\")","v":""},{"$f":"IFERROR(IF(Kundeemnedata[[#This Row],[Prognose for \nLuk]] <>\"\",IF(Kundeemnedata[[#This Row],[Prognose for \nLuk]] = \"September\",Kundeemnedata[Vægtet \nPrognose],0),\"\"),\"\")","v":""},{"$f":"IFERROR(IF(Kundeemnedata[[#This Row],[Prognose for \nLuk]] <>\"\",IF(Kundeemnedata[[#This Row],[Prognose for \nLuk]] = \"Oktober\",Kundeemnedata[Vægtet \nPrognose],0),\"\"),\"\")","v":""},{"$f":"IFERROR(IF(Kundeemnedata[[#This Row],[Prognose for \nLuk]] <>\"\",IF(Kundeemnedata[[#This Row],[Prognose for \nLuk]] = \"November\",Kundeemnedata[Vægtet \nPrognose],0),\"\"),\"\")","v":""},{"$f":"IFERROR(IF(Kundeemnedata[[#This Row],[Prognose for \nLuk]] <>\"\",IF(Kundeemnedata[[#This Row],[Prognose for \nLuk]] = \"December\",Kundeemnedata[Vægtet \nPrognose],0),\"\"),\"\")","v":""}]
[null,{"$f":"IFERROR(IF(AND(Kundeemnedata[[#This Row],[Kundeemnets navn]] <> \"\", ROW(Salgsprognose[Kundeemnets navn])<>SenestePostering),Kundeemnedata[Kundeemnets navn], \"\"),\"\")","v":""},{"$f":"IFERROR(IF(Kundeemnedata[[#This Row],[Prognose for \nLuk]] <>\"\",IF(Kundeemnedata[[#This Row],[Prognose for \nLuk]]= \"Januar\",Kundeemnedata[Vægtet \nPrognose],0),\"\"),\"\")","v":""},{"$f":"IFERROR(IF(Kundeemnedata[[#This Row],[Prognose for \nLuk]] <>\"\",IF(Kundeemnedata[[#This Row],[Prognose for \nLuk]] = \"Februar\",Kundeemnedata[Vægtet \nPrognose],0),\"\"),\"\")","v":""},{"$f":"IFERROR(IF(Kundeemnedata[[#This Row],[Prognose for \nLuk]] <>\"\",IF(Kundeemnedata[[#This Row],[Prognose for \nLuk]] = \"Marts\",Kundeemnedata[Vægtet \nPrognose],0),\"\"),\"\")","v":""},{"$f":"IFERROR(IF(Kundeemnedata[[#This Row],[Prognose for \nLuk]] <>\"\",IF(Kundeemnedata[[#This Row],[Prognose for \nLuk]] = \"April\",Kundeemnedata[Vægtet \nPrognose],0),\"\"),\"\")","v":""},{"$f":"IFERROR(IF(Kundeemnedata[[#This Row],[Prognose for \nLuk]] <>\"\",IF(Kundeemnedata[[#This Row],[Prognose for \nLuk]] = \"Maj\",Kundeemnedata[Vægtet \nPrognose],0),\"\"),\"\")","v":""},{"$f":"IFERROR(IF(Kundeemnedata[[#This Row],[Prognose for \nLuk]] <>\"\",IF(Kundeemnedata[[#This Row],[Prognose for \nLuk]] = \"Juni\",Kundeemnedata[Vægtet \nPrognose],0),\"\"),\"\")","v":""},{"$f":"IFERROR(IF(Kundeemnedata[[#This Row],[Prognose for \nLuk]] <>\"\",IF(Kundeemnedata[[#This Row],[Prognose for \nLuk]] = \"July\",Kundeemnedata[Vægtet \nPrognose],0),\"\"),\"\")","v":""},{"$f":"IFERROR(IF(Kundeemnedata[[#This Row],[Prognose for \nLuk]] <>\"\",IF(Kundeemnedata[[#This Row],[Prognose for \nLuk]] = \"August\",Kundeemnedata[Vægtet \nPrognose],0),\"\"),\"\")","v":""},{"$f":"IFERROR(IF(Kundeemnedata[[#This Row],[Prognose for \nLuk]] <>\"\",IF(Kundeemnedata[[#This Row],[Prognose for \nLuk]] = \"September\",Kundeemnedata[Vægtet \nPrognose],0),\"\"),\"\")","v":""},{"$f":"IFERROR(IF(Kundeemnedata[[#This Row],[Prognose for \nLuk]] <>\"\",IF(Kundeemnedata[[#This Row],[Prognose for \nLuk]] = \"Oktober\",Kundeemnedata[Vægtet \nPrognose],0),\"\"),\"\")","v":""},{"$f":"IFERROR(IF(Kundeemnedata[[#This Row],[Prognose for \nLuk]] <>\"\",IF(Kundeemnedata[[#This Row],[Prognose for \nLuk]] = \"November\",Kundeemnedata[Vægtet \nPrognose],0),\"\"),\"\")","v":""},{"$f":"IFERROR(IF(Kundeemnedata[[#This Row],[Prognose for \nLuk]] <>\"\",IF(Kundeemnedata[[#This Row],[Prognose for \nLuk]] = \"December\",Kundeemnedata[Vægtet \nPrognose],0),\"\"),\"\")","v":""}]
[null,{"$f":"IFERROR(IF(AND(Kundeemnedata[[#This Row],[Kundeemnets navn]] <> \"\", ROW(Salgsprognose[Kundeemnets navn])<>SenestePostering),Kundeemnedata[Kundeemnets navn], \"\"),\"\")","v":""},{"$f":"IFERROR(IF(Kundeemnedata[[#This Row],[Prognose for \nLuk]] <>\"\",IF(Kundeemnedata[[#This Row],[Prognose for \nLuk]]= \"Januar\",Kundeemnedata[Vægtet \nPrognose],0),\"\"),\"\")","v":""},{"$f":"IFERROR(IF(Kundeemnedata[[#This Row],[Prognose for \nLuk]] <>\"\",IF(Kundeemnedata[[#This Row],[Prognose for \nLuk]] = \"Februar\",Kundeemnedata[Vægtet \nPrognose],0),\"\"),\"\")","v":""},{"$f":"IFERROR(IF(Kundeemnedata[[#This Row],[Prognose for \nLuk]] <>\"\",IF(Kundeemnedata[[#This Row],[Prognose for \nLuk]] = \"Marts\",Kundeemnedata[Vægtet \nPrognose],0),\"\"),\"\")","v":""},{"$f":"IFERROR(IF(Kundeemnedata[[#This Row],[Prognose for \nLuk]] <>\"\",IF(Kundeemnedata[[#This Row],[Prognose for \nLuk]] = \"April\",Kundeemnedata[Vægtet \nPrognose],0),\"\"),\"\")","v":""},{"$f":"IFERROR(IF(Kundeemnedata[[#This Row],[Prognose for \nLuk]] <>\"\",IF(Kundeemnedata[[#This Row],[Prognose for \nLuk]] = \"Maj\",Kundeemnedata[Vægtet \nPrognose],0),\"\"),\"\")","v":""},{"$f":"IFERROR(IF(Kundeemnedata[[#This Row],[Prognose for \nLuk]] <>\"\",IF(Kundeemnedata[[#This Row],[Prognose for \nLuk]] = \"Juni\",Kundeemnedata[Vægtet \nPrognose],0),\"\"),\"\")","v":""},{"$f":"IFERROR(IF(Kundeemnedata[[#This Row],[Prognose for \nLuk]] <>\"\",IF(Kundeemnedata[[#This Row],[Prognose for \nLuk]] = \"July\",Kundeemnedata[Vægtet \nPrognose],0),\"\"),\"\")","v":""},{"$f":"IFERROR(IF(Kundeemnedata[[#This Row],[Prognose for \nLuk]] <>\"\",IF(Kundeemnedata[[#This Row],[Prognose for \nLuk]] = \"August\",Kundeemnedata[Vægtet \nPrognose],0),\"\"),\"\")","v":""},{"$f":"IFERROR(IF(Kundeemnedata[[#This Row],[Prognose for \nLuk]] <>\"\",IF(Kundeemnedata[[#This Row],[Prognose for \nLuk]] = \"September\",Kundeemnedata[Vægtet \nPrognose],0),\"\"),\"\")","v":""},{"$f":"IFERROR(IF(Kundeemnedata[[#This Row],[Prognose for \nLuk]] <>\"\",IF(Kundeemnedata[[#This Row],[Prognose for \nLuk]] = \"Oktober\",Kundeemnedata[Vægtet \nPrognose],0),\"\"),\"\")","v":""},{"$f":"IFERROR(IF(Kundeemnedata[[#This Row],[Prognose for \nLuk]] <>\"\",IF(Kundeemnedata[[#This Row],[Prognose for \nLuk]] = \"November\",Kundeemnedata[Vægtet \nPrognose],0),\"\"),\"\")","v":""},{"$f":"IFERROR(IF(Kundeemnedata[[#This Row],[Prognose for \nLuk]] <>\"\",IF(Kundeemnedata[[#This Row],[Prognose for \nLuk]] = \"December\",Kundeemnedata[Vægtet \nPrognose],0),\"\"),\"\")","v":""}]
[null,{"$f":"IFERROR(IF(AND(Kundeemnedata[[#This Row],[Kundeemnets navn]] <> \"\", ROW(Salgsprognose[Kundeemnets navn])<>SenestePostering),Kundeemnedata[Kundeemnets navn], \"\"),\"\")","v":""},{"$f":"IFERROR(IF(Kundeemnedata[[#This Row],[Prognose for \nLuk]] <>\"\",IF(Kundeemnedata[[#This Row],[Prognose for \nLuk]]= \"Januar\",Kundeemnedata[Vægtet \nPrognose],0),\"\"),\"\")","v":""},{"$f":"IFERROR(IF(Kundeemnedata[[#This Row],[Prognose for \nLuk]] <>\"\",IF(Kundeemnedata[[#This Row],[Prognose for \nLuk]] = \"Februar\",Kundeemnedata[Vægtet \nPrognose],0),\"\"),\"\")","v":""},{"$f":"IFERROR(IF(Kundeemnedata[[#This Row],[Prognose for \nLuk]] <>\"\",IF(Kundeemnedata[[#This Row],[Prognose for \nLuk]] = \"Marts\",Kundeemnedata[Vægtet \nPrognose],0),\"\"),\"\")","v":""},{"$f":"IFERROR(IF(Kundeemnedata[[#This Row],[Prognose for \nLuk]] <>\"\",IF(Kundeemnedata[[#This Row],[Prognose for \nLuk]] = \"April\",Kundeemnedata[Vægtet \nPrognose],0),\"\"),\"\")","v":""},{"$f":"IFERROR(IF(Kundeemnedata[[#This Row],[Prognose for \nLuk]] <>\"\",IF(Kundeemnedata[[#This Row],[Prognose for \nLuk]] = \"Maj\",Kundeemnedata[Vægtet \nPrognose],0),\"\"),\"\")","v":""},{"$f":"IFERROR(IF(Kundeemnedata[[#This Row],[Prognose for \nLuk]] <>\"\",IF(Kundeemnedata[[#This Row],[Prognose for \nLuk]] = \"Juni\",Kundeemnedata[Vægtet \nPrognose],0),\"\"),\"\")","v":""},{"$f":"IFERROR(IF(Kundeemnedata[[#This Row],[Prognose for \nLuk]] <>\"\",IF(Kundeemnedata[[#This Row],[Prognose for \nLuk]] = \"July\",Kundeemnedata[Vægtet \nPrognose],0),\"\"),\"\")","v":""},{"$f":"IFERROR(IF(Kundeemnedata[[#This Row],[Prognose for \nLuk]] <>\"\",IF(Kundeemnedata[[#This Row],[Prognose for \nLuk]] = \"August\",Kundeemnedata[Vægtet \nPrognose],0),\"\"),\"\")","v":""},{"$f":"IFERROR(IF(Kundeemnedata[[#This Row],[Prognose for \nLuk]] <>\"\",IF(Kundeemnedata[[#This Row],[Prognose for \nLuk]] = \"September\",Kundeemnedata[Vægtet \nPrognose],0),\"\"),\"\")","v":""},{"$f":"IFERROR(IF(Kundeemnedata[[#This Row],[Prognose for \nLuk]] <>\"\",IF(Kundeemnedata[[#This Row],[Prognose for \nLuk]] = \"Oktober\",Kundeemnedata[Vægtet \nPrognose],0),\"\"),\"\")","v":""},{"$f":"IFERROR(IF(Kundeemnedata[[#This Row],[Prognose for \nLuk]] <>\"\",IF(Kundeemnedata[[#This Row],[Prognose for \nLuk]] = \"November\",Kundeemnedata[Vægtet \nPrognose],0),\"\"),\"\")","v":""},{"$f":"IFERROR(IF(Kundeemnedata[[#This Row],[Prognose for \nLuk]] <>\"\",IF(Kundeemnedata[[#This Row],[Prognose for \nLuk]] = \"December\",Kundeemnedata[Vægtet \nPrognose],0),\"\"),\"\")","v":""}]
[null,{"$f":"IFERROR(IF(AND(Kundeemnedata[[#This Row],[Kundeemnets navn]] <> \"\", ROW(Salgsprognose[Kundeemnets navn])<>SenestePostering),Kundeemnedata[Kundeemnets navn], \"\"),\"\")","v":""},{"$f":"IFERROR(IF(Kundeemnedata[[#This Row],[Prognose for \nLuk]] <>\"\",IF(Kundeemnedata[[#This Row],[Prognose for \nLuk]]= \"Januar\",Kundeemnedata[Vægtet \nPrognose],0),\"\"),\"\")","v":""},{"$f":"IFERROR(IF(Kundeemnedata[[#This Row],[Prognose for \nLuk]] <>\"\",IF(Kundeemnedata[[#This Row],[Prognose for \nLuk]] = \"Februar\",Kundeemnedata[Vægtet \nPrognose],0),\"\"),\"\")","v":""},{"$f":"IFERROR(IF(Kundeemnedata[[#This Row],[Prognose for \nLuk]] <>\"\",IF(Kundeemnedata[[#This Row],[Prognose for \nLuk]] = \"Marts\",Kundeemnedata[Vægtet \nPrognose],0),\"\"),\"\")","v":""},{"$f":"IFERROR(IF(Kundeemnedata[[#This Row],[Prognose for \nLuk]] <>\"\",IF(Kundeemnedata[[#This Row],[Prognose for \nLuk]] = \"April\",Kundeemnedata[Vægtet \nPrognose],0),\"\"),\"\")","v":""},{"$f":"IFERROR(IF(Kundeemnedata[[#This Row],[Prognose for \nLuk]] <>\"\",IF(Kundeemnedata[[#This Row],[Prognose for \nLuk]] = \"Maj\",Kundeemnedata[Vægtet \nPrognose],0),\"\"),\"\")","v":""},{"$f":"IFERROR(IF(Kundeemnedata[[#This Row],[Prognose for \nLuk]] <>\"\",IF(Kundeemnedata[[#This Row],[Prognose for \nLuk]] = \"Juni\",Kundeemnedata[Vægtet \nPrognose],0),\"\"),\"\")","v":""},{"$f":"IFERROR(IF(Kundeemnedata[[#This Row],[Prognose for \nLuk]] <>\"\",IF(Kundeemnedata[[#This Row],[Prognose for \nLuk]] = \"July\",Kundeemnedata[Vægtet \nPrognose],0),\"\"),\"\")","v":""},{"$f":"IFERROR(IF(Kundeemnedata[[#This Row],[Prognose for \nLuk]] <>\"\",IF(Kundeemnedata[[#This Row],[Prognose for \nLuk]] = \"August\",Kundeemnedata[Vægtet \nPrognose],0),\"\"),\"\")","v":""},{"$f":"IFERROR(IF(Kundeemnedata[[#This Row],[Prognose for \nLuk]] <>\"\",IF(Kundeemnedata[[#This Row],[Prognose for \nLuk]] = \"September\",Kundeemnedata[Vægtet \nPrognose],0),\"\"),\"\")","v":""},{"$f":"IFERROR(IF(Kundeemnedata[[#This Row],[Prognose for \nLuk]] <>\"\",IF(Kundeemnedata[[#This Row],[Prognose for \nLuk]] = \"Oktober\",Kundeemnedata[Vægtet \nPrognose],0),\"\"),\"\")","v":""},{"$f":"IFERROR(IF(Kundeemnedata[[#This Row],[Prognose for \nLuk]] <>\"\",IF(Kundeemnedata[[#This Row],[Prognose for \nLuk]] = \"November\",Kundeemnedata[Vægtet \nPrognose],0),\"\"),\"\")","v":""},{"$f":"IFERROR(IF(Kundeemnedata[[#This Row],[Prognose for \nLuk]] <>\"\",IF(Kundeemnedata[[#This Row],[Prognose for \nLuk]] = \"December\",Kundeemnedata[Vægtet \nPrognose],0),\"\"),\"\")","v":""}]
[null,"Total",{"$f":"SUBTOTAL(109,Salgsprognose[Januar \nPrognose])","v":{"v":270000,"d":"kr. 270,000"}},{"$f":"SUBTOTAL(109,Salgsprognose[Februar \nPrognose])","v":{"v":20000,"d":"kr. 20,000"}},{"$f":"SUBTOTAL(109,Salgsprognose[Marts \nPrognose])","v":{"v":20000,"d":"kr. 20,000"}},{"$f":"SUBTOTAL(109,Salgsprognose[April \nPrognose])","v":{"v":0,"d":"kr. 0"}},{"$f":"SUBTOTAL(109,Salgsprognose[Maj \nPrognose])","v":{"v":0,"d":"kr. 0"}},{"$f":"SUBTOTAL(109,Salgsprognose[Juni \nPrognose])","v":{"v":0,"d":"kr. 0"}},{"$f":"SUBTOTAL(109,Salgsprognose[Juli Prognose])","v":{"v":0,"d":"kr. 0"}},{"$f":"SUBTOTAL(109,Salgsprognose[August \nPrognose])","v":{"v":0,"d":"kr. 0"}},{"$f":"SUBTOTAL(109,Salgsprognose[September \nPrognose])","v":{"v":0,"d":"kr. 0"}},{"$f":"SUBTOTAL(109,Salgsprognose[Oktober \nPrognose])","v":{"v":0,"d":"kr. 0"}},{"$f":"SUBTOTAL(109,Salgsprognose[November \nPrognose])","v":{"v":0,"d":"kr. 0"}},{"$f":"SUBTOTAL(109,Salgsprognose[December \nPrognose])","v":{"v":0,"d":"kr. 0"}}]
[null,"Samlet akkumulering",{"$f":"C20","v":{"v":270000,"d":"kr. 270,000"}},{"$f":"C21+D20","v":{"v":290000,"d":"kr. 290,000"}},{"$f":"D21+E20","v":{"v":310000,"d":"kr. 310,000"}},{"$f":"E21+F20","v":{"v":310000,"d":"kr. 310,000"}},{"$f":"F21+G20","v":{"v":310000,"d":"kr. 310,000"}},{"$f":"G21+H20","v":{"v":310000,"d":"kr. 310,000"}},{"$f":"H21+I20","v":{"v":310000,"d":"kr. 310,000"}},{"$f":"I21+J20","v":{"v":310000,"d":"kr. 310,000"}},{"$f":"J21+K20","v":{"v":310000,"d":"kr. 310,000"}},{"$f":"K21+L20","v":{"v":310000,"d":"kr. 310,000"}},{"$f":"L21+M20","v":{"v":310000,"d":"kr. 310,000"}},{"$f":"M21+N20","v":{"v":310000,"d":"kr. 310,000"}}]

{"sheet":"Månedlig vægtet prognose","index":2,"n_rows":3,"n_cols":2,"rows_kept":3}
[null,{"$f":"Firmanavn","v":"Firmanavn"}]
[null,"Månedlig vægtet prognose"]
[null," "]